bitfinex-derivatives/quotes_SOLF0:USTF0_20240927
["timestamp","ask_amount","ask_price","bid_price","bid_amount"]
[1727396253066,15.4,155.84,155.77,1.339]
[1727396253373,15.4,155.82,155.77,1.339]
[1727396253569,18.6081,155.82,155.75,1.3182]
[1727396254165,15.4,155.82,155.73,83.29119343]
[1727396254367,15.4,155.78,155.71,1.3419]
[1727396254773,1.3767,155.81,155.7,2.6272]
[1727396254774,15.4,155.76,155.7,1.3345]
[1727396255273,18.6089,155.78,155.74,3.2094]
[1727396255476,15.4,155.78,155.7,16.7345]
[1727396256166,15.4,155.8,155.72,15.4]
[1727396256872,16.6602,155.82,155.73,15.4]
[1727396257170,15.4,155.82,155.73,15.4]
[1727396257371,3.2081,155.82,155.73,15.4]
[1727396257575,15.4,155.84,155.76,15.4]
[1727396258073,18.57143993,155.84,155.76,15.4]
[1727396259363,3.208,155.82,155.78,3.2087]
[1727396259773,3.208,155.82,155.76,15.4]
[1727396259976,3.208,155.82,155.79,3.2086]
[1727396261376,15.4,155.86,155.76,15.4]
[1727396261571,15.4,155.86,155.77,15.4]
[1727396261983,3.18920538,155.85,155.77,15.4]
[1727396262472,6.39670538,155.85,155.81,3.2081]
[1727396264375,3.2075,155.85,155.81,3.2081]
[1727396264574,3.2075,155.85,155.78,1.3501]
[1727396264575,18.54676399,155.86,155.78,1.3501]
[1727396265676,3.2076,155.84,155.8,3.2083]
[1727396266779,3.2078,155.83,155.79,3.2085]
[1727396267779,3.2078,155.83,155.8,3.2083]
[1727396268978,3.2076,155.84,155.8,3.2083]
[1727396269179,2.6387,155.87,155.79,15.4]
[1727396269383,3.207,155.87,155.79,15.4]
[1727396269678,3.207,155.87,155.79,16.7574]
[1727396269887,3.207,155.87,155.83,3.2076]
[1727396271177,3.207,155.87,155.84,3.2076]
[1727396271377,3.207,155.87,155.79,16.7574]
[1727396271578,3.207,155.87,155.79,18.0233]
[1727396272386,3.207,155.87,155.83,3.2077]
[1727396272582,15.4,155.87,155.79,2.6233]
[1727396272881,15.4,155.85,155.78,1.3501]
[1727396273083,3.2077,155.84,155.8,3.2083]
[1727396274081,15.4,155.83,155.8,3.2083]
[1727396274282,15.4,155.82,155.62,6.4242]
[1727396274474,15.4,155.77,155.68,2.7033]
[1727396274683,3.2096,155.75,155.7,3.2104]
[1727396275183,18.6096,155.75,155.7,3.2104]
[1727396275679,18.6096,155.75,155.71,3.2102]
[1727396275878,15.4,155.77,155.68,18.1033]
[1727396276072,15.4,155.79,155.7,15.4]
[1727396276274,18.53232488,155.79,155.7,15.4]
[1727396276574,3.2091,155.77,155.7,15.4]
[1727396277176,1.309,155.81,155.7,15.4]
[1727396277377,3.22180606,155.8,155.72,15.4]
[1727396277587,16.709,155.81,155.72,15.4]
[1727396277781,3.2088,155.79,155.72,15.4]
[1727396278777,3.2088,155.79,155.75,3.2094]
[1727396279786,3.27509619,155.8,155.75,3.2094]
[1727396279787,6.48359619,155.8,155.75,3.2094]
[1727396279985,3.2085,155.8,155.76,3.2091]
[1727396280687,18.6083,155.81,155.72,15.4]
[1727396281587,18.6083,155.81,155.71,2.675]
[1727396281588,4.5504,155.82,155.74,15.4]
[1727396281787,15.4,155.8,155.75,1.2694]
[1727396281984,3.2087,155.79,155.75,1.2694]
[1727396282289,15.4,155.79,155.71,2.675]
[1727396282478,15.4,155.77,155.71,2.675]
[1727396282686,3.2094,155.76,155.71,1.3727]
[1727396283791,3.2094,155.76,155.73,3.2098]
[1727396284493,21.82629651,155.77,155.73,3.2098]
[1727396285279,22.886,155.85,155.71,1.3727]
[1727396285481,15.4,155.83,155.74,15.4]
[1727396285881,3.2083,155.81,155.77,3.2089]
[1727396286083,3.2083,155.81,155.74,15.4]
[1727396286493,3.208,155.82,155.74,15.4]
[1727396286695,3.208,155.82,155.75,1.3067]
[1727396287489,3.208,155.82,155.78,3.2087]
[1727396287695,15.4,155.83,155.75,1.3067]
[1727396287899,51.75228769,155.86,155.75,16.7067]
[1727396288196,3.2074,155.85,155.78,15.4]
[1727396288396,3.2074,155.85,155.75,1.3067]
[1727396288397,66.15228769,155.86,155.75,1.3067]
[1727396288599,15.4,155.86,155.79,3.2084]
[1727396288794,3.2074,155.85,155.76,15.4]
[1727396289297,3.2074,155.85,155.77,1.3733]
[1727396290602,3.2074,155.85,155.81,3.2082]
[1727396291600,3.2076,155.84,155.8,3.2084]
[1727396291802,15.4,155.84,155.77,1.3733]
[1727396292598,18.6076,155.84,155.79,3.2086]
[1727396293093,15.4,155.84,155.77,1.3733]
[1727396293295,3.2075,155.85,155.77,1.3733]
[1727396293492,18.54804747,155.88,155.78,15.4]
[1727396293698,15.4,155.88,155.78,15.4]
[1727396294092,3.2072,155.86,155.82,3.2078]
[1727396295104,15.4,155.84,155.77,1.3733]
[1727396295704,18.6077,155.84,155.8,3.2082]
[1727396296603,3.24559545,155.88,155.75,1.3067]
[1727396296604,15.4,155.82,155.75,1.3067]
[1727396297999,3.6696,155.87,155.75,1.3067]
[1727396298000,15.4,155.84,155.75,1.3067]
[1727396298203,15.4,155.84,155.76,15.4]
[1727396298504,28.3196,155.87,155.75,1.3067]
[1727396298704,3.2077,155.84,155.8,3.2083]
[1727396301610,3.2079,155.83,155.79,3.2086]
[1727396301809,19.27,156.05,155.82,24.65]
[1727396302114,24.65,155.94,155.8,25.9051]
[1727396302308,24.65,155.94,155.88,3.2066]
[1727396302309,1.3406,155.93,155.88,3.2066]
[1727396302611,1.3406,155.93,155.83,24.65]
[1727396303007,1.3406,155.93,155.8,25.9051]
[1727396303210,1.3406,155.93,155.81,6.33257471]
[1727396303904,4.5465,155.93,155.88,3.2067]
[1727396304407,1.3406,155.93,155.88,3.2067]
[1727396304604,1.3406,155.93,155.89,3.2065]
[1727396305009,1.3406,155.93,155.81,6.33257471]
[1727396305309,1.3406,155.93,155.9,3.2062]
[1727396306605,1.3406,155.93,155.8,25.9051]
[1727396306801,24.65,155.89,155.8,1.2551]
[1727396308515,24.65,155.89,155.85,3.2073]
[1727396309014,24.65,155.89,155.86,3.2071]
[1727396310719,1.3406,155.93,155.8,25.9051]
[1727396310914,1.3406,155.93,155.83,24.65]
[1727396311112,1.3406,155.93,155.84,1.3617]
[1727396311311,1.3406,155.93,155.92,3.2059]
[1727396311819,27.79177942,155.95,155.92,3.2059]
[1727396312013,3.2049,155.97,155.86,1.304]
[1727396312215,26.0058,155.98,155.86,1.304]
[1727396312216,3.27504099,155.96,155.86,1.304]
[1727396312419,29.2105,155.98,155.93,3.2055]
[1727396312619,3.13969017,155.97,155.93,3.2055]
[1727396312812,29.2105,155.98,155.93,3.2055]
[1727396313010,29.21605221,155.98,155.93,3.2055]
[1727396313218,3.205,155.97,155.93,3.2055]
[1727396314118,32.42085221,155.98,155.94,3.2055]
[1727396314308,4.56605221,155.98,155.88,24.65]
[1727396314716,4.56605221,155.98,155.95,3.2051]
[1727396314911,24.65,156.0,155.88,24.65]
[1727396315117,3.22500609,155.99,155.88,24.65]
[1727396316213,24.65,156.0,155.88,24.65]
[1727396317027,3.14009155,155.99,155.88,24.65]
[1727396317523,6.34459155,155.99,155.96,3.2051]
[1727396317724,3.14009155,155.99,155.96,3.2051]
[1727396318422,24.65,156.0,155.97,3.2048]
[1727396318824,28.736,156.03,155.97,3.2048]
[1727396319021,1.3762,156.03,155.92,24.65]
[1727396319318,24.65,156.05,155.93,4.0897]
[1727396319518,26.0268,156.06,155.93,4.0897]
[1727396319922,3.2035,156.04,155.93,4.0897]
[1727396320218,310.5589,156.23,155.95,24.65]
[1727396320414,3.2033,156.05,156.01,3.204]
[1727396320615,3.27474256,156.05,155.95,24.65]
[1727396320821,3.2033,156.05,156.01,3.204]
[1727396321020,6.44437818,156.05,156.01,3.204]
[1727396321225,3.2033,156.05,156.01,3.204]
[1727396321721,3.17503187,156.05,155.99,3.2043]
[1727396321923,24.65,156.07,155.93,28.7397]
[1727396322126,1.2841,156.06,155.93,28.7397]
[1727396322327,4.45458842,156.06,155.93,28.7397]
[1727396322517,3.2035,156.04,155.93,28.7397]
[1727396322830,6.47206459,156.04,155.93,28.7397]
[1727396323125,3.2035,156.04,155.99,3.2043]
[1727396323326,3.2037,156.03,155.99,3.2043]
[1727396324322,3.2039,156.02,155.98,3.2046]
[1727396326226,3.2037,156.03,155.99,3.2045]
[1727396326727,3.2039,156.02,155.98,3.2046]
[1727396328328,15.39,156.01,155.98,3.2046]
[1727396328532,15.39,155.99,155.93,4.0897]
[1727396330131,15.39,155.99,155.96,3.2051]
[1727396330331,18.5945,155.99,155.96,3.2051]
[1727396331925,3.2044,156.0,155.96,3.2051]
[1727396333323,15.39,156.01,155.98,3.2047]
[1727396333726,3.204,156.02,155.98,3.2047]
[1727396334133,3.204,156.02,155.94,15.39]
[1727396334134,3.204,156.02,155.99,3.2045]
[1727396334335,15.39,156.05,155.96,15.39]
[1727396335030,18.5934,156.05,156.0,3.2041]
[1727396335430,15.39,156.03,155.95,15.39]
[1727396336133,15.39,156.03,155.99,3.2044]
[1727396336835,18.5938,156.03,155.99,3.2044]
[1727396337739,3.2035,156.04,156.0,3.2042]
[1727396338833,15.39,156.05,155.96,15.39]
[1727396339235,3.28051603,156.04,155.96,15.39]
[1727396339437,6.48401603,156.04,156.0,3.2041]
[1727396339837,3.28051603,156.04,156.0,3.2041]
[1727396340138,15.39,156.05,156.0,3.2041]
[1727396340339,3.2035,156.04,156.0,3.2041]
[1727396340851,15.39,156.08,155.98,15.39]
[1727396341034,15.39,156.08,155.99,2.5296]
[1727396341239,3.18354163,156.07,156.02,3.2038]
[1727396341439,15.39,156.08,155.99,2.5296]
[1727396342040,18.58796275,156.08,156.03,3.2035]
[1727396342539,3.2029,156.07,156.03,3.2035]
[1727396342742,18.58796275,156.08,156.03,3.2035]
[1727396343235,21.79076275,156.08,156.03,3.2035]
[1727396343828,18.58796275,156.08,155.99,3.822]
[1727396344836,3.2029,156.07,155.99,3.822]
[1727396345038,3.2029,156.07,155.99,19.212]
[1727396345235,15.39,156.08,155.99,19.212]
[1727396345430,6.44209564,156.07,155.99,19.212]
[1727396345639,3.23909564,156.07,155.99,19.212]
[1727396346241,15.39,156.08,156.01,3.204]
[1727396346639,18.62781384,156.08,156.01,3.204]
[1727396347835,3.2032,156.06,156.01,3.204]
[1727396348031,3.2032,156.06,156.02,3.2038]
[1727396348231,15.39,156.03,155.94,2.7449]
[1727396348437,3.204,156.02,155.94,2.7449]
[1727396349134,3.204,156.02,155.98,3.2047]
[1727396349533,3.2043,156.0,155.94,2.7449]
[1727396349733,3.2043,156.0,155.96,3.205]
[1727396350140,3.2041,156.01,155.94,2.7449]
[1727396350536,15.39,156.03,155.94,2.7449]
[1727396350741,3.2035,156.04,155.95,15.39]
[1727396350946,3.2035,156.04,156.0,3.2041]
[1727396352144,15.39,156.07,155.97,15.39]
[1727396352348,18.67190818,156.07,155.97,15.39]
[1727396352748,21.87480818,156.07,156.03,3.2036]
[1727396352947,18.67190818,156.07,156.03,3.2036]
[1727396353150,18.67190818,156.07,155.97,15.39]
[1727396353345,3.2032,156.06,156.02,3.2038]
[1727396353544,15.39,156.07,155.97,15.39]
[1727396353749,3.1928095,156.06,155.97,15.39]
[1727396354144,15.39,156.07,155.97,15.39]
[1727396354348,18.52215405,156.07,155.97,15.39]
[1727396354548,3.203,156.06,156.02,3.2037]
[1727396354750,3.203,156.06,155.99,15.39]
[1727396355049,3.203,156.06,156.0,2.6257]
[1727396355852,3.203,156.06,156.02,3.2037]
[1727396356351,3.2028,156.08,156.04,3.2033]
[1727396356749,15.39,156.09,156.0,2.6257]
[1727396357049,15.39,156.09,156.03,3.2036]
[1727396357353,15.39,156.09,156.0,2.6257]
[1727396357354,3.2029,156.07,156.01,15.39]
[1727396357547,15.39,156.09,156.04,3.2034]
[1727396357749,15.39,156.09,156.01,15.39]
[1727396357943,3.2028,156.08,156.01,15.39]
[1727396358551,3.2029,156.07,156.03,3.2035]
[1727396359253,3.2029,156.07,156.04,3.2034]
[1727396362659,3.2027,156.08,156.05,3.2032]
[1727396363064,66.06394167,156.11,156.01,15.39]
[1727396363266,69.22316539,156.11,156.03,3.2036]
[1727396363463,15.39,156.09,156.01,15.39]
[1727396363659,15.39,156.07,156.0,1.257]
[1727396363861,15.39,156.04,155.99,3.2045]
[1727396364459,15.39,156.04,155.96,18.0697]
[1727396364666,15.39,156.07,155.96,18.0697]
[1727396364976,53.83316539,156.11,156.03,3.2035]
[1727396365169,15.39,156.1,156.03,3.2035]
[1727396365674,3.203,156.07,156.03,3.2035]
[1727396365873,15.39,156.09,156.02,3.2038]
[1727396366874,3.2033,156.05,156.02,3.2038]
[1727396367269,3.203,156.07,156.0,15.39]
[1727396367471,15.39,156.09,156.0,15.39]
[1727396367977,3.2031,156.06,156.0,15.39]
[1727396368169,69.22316539,156.11,156.02,15.39]
[1727396369071,3.15922372,156.11,156.02,15.39]
[1727396369262,3.15922372,156.11,156.03,2.6315]
[1727396369467,3.2024,156.09,156.05,3.2032]
[1727396371265,3.26665423,156.11,156.04,15.39]
[1727396371471,15.39,156.13,156.04,15.39]
[1727396372072,18.65762161,156.13,156.04,15.39]
[1727396372775,18.65762161,156.13,156.05,3.2031]
[1727396373374,3.2025,156.09,156.05,3.2031]
[1727396376675,18.65762161,156.13,156.04,15.39]
[1727396376866,1.3759,156.14,156.04,15.39]
[1727396377069,3.2019,156.12,156.09,3.2024]
[1727396377272,15.39,156.17,156.09,15.39]
[1727396377473,3.19437592,156.16,156.09,15.39]
[1727396377666,1.3656,156.18,156.09,15.39]
[1727396377874,0.98992481,156.17,156.09,15.39]
[1727396378164,3.2015,156.14,156.09,15.39]
[1727396378373,16.7476,156.19,156.09,15.39]
[1727396378577,0.98989697,156.18,156.09,15.39]
[1727396379072,3.2011,156.16,156.11,15.39]
[1727396379667,3.2011,156.16,156.11,18.5918]
[1727396380273,3.2008,156.17,156.11,15.39]
[1727396380477,19.90577812,156.19,156.11,15.39]
[1727396381174,3.2012,156.16,156.11,18.592]
[1727396381869,19.90577812,156.19,156.1,3.2022]
[1727396382180,15.39,156.15,156.05,15.39]
[1727396383881,3.2019,156.12,156.08,3.2026]
[1727396384179,15.39,156.17,156.07,15.39]
[1727396384482,15.39,156.13,156.04,83.13129413]
[1727396384681,0.9900162,156.16,156.04,83.13129413]
[1727396384682,15.39,156.1,156.04,83.13129413]
[1727396384980,18.55365624,156.1,156.04,83.13129413]
[1727396386272,3.2028,156.08,156.04,83.13129413]
[1727396386474,3.2028,156.08,156.03,5.835]
[1727396386675,18.55365624,156.1,156.03,2.6315]
[1727396387781,3.2027,156.08,156.04,3.2034]
[1727396387974,15.39,156.08,155.98,15.39]
[1727396388176,15.39,156.08,156.0,15.39]
[1727396388379,3.203,156.07,156.03,3.2036]
[1727396389280,1.3522,156.09,156.02,15.39]
[1727396389483,3.16365624,156.1,156.02,15.39]
[1727396389778,3.2027,156.08,156.02,15.39]
[1727396390182,3.25683199,156.1,156.02,15.39]
[1727396390482,3.2025,156.09,156.05,3.2031]
[1727396391979,3.25298685,156.1,156.02,15.39]
[1727396392184,15.39,156.11,156.01,1.3797]
[1727396392381,15.39,156.09,156.01,1.3797]
[1727396392580,3.21101076,156.08,156.01,1.3797]
[1727396392986,3.203,156.07,156.03,3.2035]
[1727396393179,15.39,156.11,156.02,15.39]
[1727396393374,18.6466179,156.11,156.01,1.3797]
[1727396393579,15.39,156.09,156.01,1.3797]
[1727396394079,3.2032,156.06,156.02,3.2038]
[1727396394279,15.39,156.09,156.02,3.2038]
[1727396394481,3.12462315,156.08,156.02,3.2038]
[1727396394883,3.2032,156.06,156.02,3.2038]
[1727396395980,3.2034,156.05,156.01,3.2041]
[1727396397179,3.25543852,156.06,156.0,3.2042]
[1727396397476,15.39,156.07,156.0,3.2042]
[1727396397989,18.60922782,156.07,156.0,3.2042]
[1727396398789,3.2033,156.05,156.01,3.204]
[1727396399482,3.2035,156.04,156.01,3.204]
[1727396400788,3.21922782,156.07,155.98,18.0516]
[1727396400989,15.39,156.06,155.98,18.0516]
[1727396401191,18.63795153,156.06,155.98,18.0516]
[1727396401491,15.39,156.08,156.0,15.39]
[1727396401693,3.1623948,156.07,156.0,15.39]
[1727396402093,18.5928,156.08,156.0,15.39]
[1727396402294,3.2029,156.07,156.0,15.39]
[1727396402491,18.57802977,156.08,155.98,9.00169524]
[1727396402793,15.39,156.06,155.98,18.0516]
[1727396402984,3.2036,156.04,155.98,18.0516]
[1727396403190,3.2036,156.04,156.0,3.2042]
[1727396403387,3.19027149,156.04,156.0,3.2042]
[1727396403688,15.39,156.02,155.96,1.3488]
[1727396403888,15.39,156.02,155.94,6.34464325]
[1727396404094,15.39,156.02,155.93,94.8941]
[1727396404293,3.2044,156.0,155.93,94.8941]
[1727396404691,3.2044,156.0,155.96,3.205]
[1727396405292,3.2045,155.99,155.95,3.2052]
[1727396406790,15.39,155.98,155.93,2.6041]
[1727396407095,15.39,155.98,155.91,1.2803]
[1727396407388,3.205,155.97,155.93,3.2056]
[1727396407790,3.205,155.97,155.94,3.2055]
[1727396409897,3.2051,155.96,155.93,3.2057]
[1727396410193,15.39,155.95,155.89,2.702]
[1727396410495,3.2061,155.92,155.89,3.2064]
[1727396410696,3.16156612,155.94,155.86,76.9]
[1727396410894,15.39,155.93,155.86,76.9]
[1727396411099,3.2062,155.91,155.86,3.207]
[1727396411400,3.13976443,155.92,155.84,15.39]
[1727396411601,6.34576443,155.92,155.84,15.39]
[1727396412295,6.34576443,155.92,155.87,3.2068]
[1727396414101,3.13976443,155.92,155.84,15.39]
[1727396414301,15.39,155.93,155.83,4.0395]
[1727396414599,15.39,155.9,155.83,4.0395]
[1727396414800,18.5964,155.9,155.85,3.2072]
[1727396414999,21.87399976,155.9,155.85,3.2072]
[1727396415401,3.2066,155.89,155.85,3.2072]
[1727396415595,18.66759976,155.9,155.84,3.2075]
[1727396415903,18.66759976,155.9,155.83,4.0395]
[1727396415904,3.2066,155.89,155.83,4.0395]
[1727396416800,3.2066,155.89,155.85,3.2073]
[1727396417902,1.3581,155.97,155.84,15.39]
[1727396418203,3.21707873,155.96,155.88,15.39]
[1727396418403,3.2053,155.95,155.91,3.206]
[1727396419093,3.2053,155.95,155.9,3.2063]
[1727396419301,3.21707873,155.96,155.9,3.2063]
[1727396419302,3.2056,155.94,155.9,3.2063]
[1727396419502,15.39,155.95,155.89,2.5569]
[1727396419901,15.39,155.95,155.89,5.7634]
[1727396420895,3.2059,155.93,155.89,5.7634]
[1727396421803,3.25762394,155.96,155.89,2.5569]
[1727396421996,16.7481,155.97,155.91,3.206]
[1727396422904,3.2053,155.95,155.91,3.206]
[1727396423212,3.1777736,155.95,155.9,3.2063]
[1727396423507,3.2053,155.95,155.9,3.2063]
[1727396423700,3.28295118,155.95,155.9,3.2063]
[1727396423902,16.7481,155.97,155.9,3.2063]
[1727396424605,3.2056,155.94,155.9,3.2063]
[1727396424799,3.26595602,155.95,155.9,3.2063]
[1727396425899,3.2057,155.93,155.9,3.2063]
[1727396427010,1.3581,155.97,155.89,17.9469]
[1727396427510,6.47554196,155.96,155.91,3.2061]
[1727396428105,3.2053,155.95,155.91,3.2061]
[1727396428403,15.39,155.96,155.9,3.2063]
[1727396428902,3.19925805,155.95,155.9,3.2063]
[1727396429611,3.2057,155.94,155.9,3.2063]
[1727396431010,3.2057,155.94,155.85,15.39]
[1727396431011,15.39,155.94,155.85,15.39]
[1727396431708,3.2062,155.91,155.85,15.39]
[1727396432219,3.2062,155.91,155.87,3.2068]
[1727396433115,15.39,155.9,155.84,2.6129]
[1727396433311,3.18844392,155.94,155.84,2.6129]
[1727396433511,15.39,155.89,155.84,2.6129]
[1727396433712,18.5967,155.89,155.85,3.2072]
[1727396434115,18.5967,155.89,155.86,3.2071]
[1727396435317,18.5967,155.89,155.85,3.2073]
[1727396435511,15.39,155.89,155.85,3.2073]
[1727396435819,15.39,155.89,155.83,3.2076]
[1727396436214,3.2072,155.86,155.83,3.2076]
[1727396436932,15.39,155.89,155.8,18.101]
[1727396437611,3.2069,155.88,155.84,3.2075]
[1727396438415,3.2069,155.88,155.85,3.2073]
[1727396441117,3.2066,155.89,155.85,3.2073]
[1727396441318,15.39,155.93,155.84,15.39]
[1727396441520,18.56205714,155.93,155.84,15.39]
[1727396441719,3.206,155.92,155.86,15.39]
[1727396442021,1.3581,155.97,155.88,15.39]
[1727396442229,3.2053,155.95,155.88,15.39]
[1727396442526,3.2053,155.95,155.88,16.7518]
[1727396442728,3.2057,155.94,155.88,1.3618]
[1727396442923,16.7481,155.97,155.88,1.3618]
[1727396443322,3.2058,155.93,155.88,1.3618]
[1727396443624,15.39,155.94,155.89,3.2064]
[1727396443926,15.39,155.94,155.87,2.5897]
[1727396444120,15.39,155.94,155.87,5.7965]
[1727396444516,3.2059,155.92,155.87,5.7965]
[1727396445025,15.39,155.94,155.87,5.7965]
[1727396446021,15.39,155.94,155.87,2.5897]
[1727396446226,3.2057,155.93,155.87,2.5897]
[1727396446422,15.39,155.93,155.87,2.5897]
[1727396446822,3.2064,155.9,155.87,2.5897]
[1727396447225,15.39,155.93,155.87,1.3315]
[1727396447424,3.2066,155.89,155.83,2.6631]
[1727396447624,3.2066,155.89,155.83,19.3799]
[1727396448330,3.2066,155.89,155.86,3.2071]
[1727396448528,3.2066,155.89,155.83,19.3799]
[1727396448724,3.2067,155.88,155.84,3.2075]
[1727396448930,15.39,155.91,155.84,3.2075]
[1727396449623,15.39,155.92,155.83,19.3799]
[1727396449818,15.39,155.94,155.83,19.3799]
[1727396450025,3.2063,155.91,155.85,15.39]
[1727396450329,3.2063,155.91,155.87,3.2068]
[1727396452330,15.39,155.91,155.83,3.9899]
[1727396452531,15.39,155.89,155.83,3.9899]
[1727396452927,3.2069,155.88,155.84,3.2074]
[1727396455626,3.2071,155.87,155.83,7.1976]
[1727396455834,3.2071,155.87,155.83,5.8346]
[1727396456134,3.2068,155.88,155.83,2.6269]
[1727396456430,3.2068,155.88,155.85,3.2073]
[1727396457431,15.39,155.91,155.86,3.2071]
[1727396457633,15.39,155.93,155.85,15.39]
[1727396458031,3.2062,155.91,155.87,3.2068]
[1727396458427,15.39,155.93,155.87,3.2068]
[1727396458834,15.39,155.93,155.86,3.2071]
[1727396459034,3.2065,155.9,155.86,3.2071]
[1727396459234,3.2065,155.9,155.83,18.0169]
[1727396459437,3.2065,155.9,155.86,3.207]
[1727396460934,3.2065,155.9,155.87,3.2069]
[1727396461826,3.2062,155.91,155.87,3.2069]
[1727396462833,15.39,155.93,155.83,18.0169]
[1727396463333,15.39,155.91,155.83,2.6269]
[1727396463529,15.39,155.89,155.83,2.6269]
[1727396464135,15.39,155.87,155.79,16.6747]
[1727396464438,15.39,155.87,155.79,19.3219]
[1727396464631,3.2076,155.85,155.79,3.9319]
[1727396465834,3.2076,155.85,155.81,3.2081]
[1727396467732,3.2076,155.85,155.82,3.208]
[1727396469835,3.2072,155.86,155.82,3.208]
[1727396470229,18.60632381,155.87,155.8,3.2083]
[1727396470533,18.60632381,155.87,155.79,19.3219]
[1727396470534,15.39,155.83,155.77,83.26452562]
[1727396471338,18.5430135,155.83,155.77,83.26452562]
[1727396471542,19.26,155.94,155.79,15.39]
[1727396471734,15.39,155.88,155.79,15.39]
[1727396472131,3.2076,155.84,155.77,98.65452562]
[1727396472332,18.57894163,155.86,155.77,98.65452562]
[1727396472534,3.2078,155.83,155.79,3.2085]
[1727396476041,15.39,155.83,155.73,17.9726]
[1727396476434,15.39,155.83,155.73,24.32866247]
[1727396476834,15.39,155.81,155.76,3.2091]
[1727396477034,15.39,155.81,155.73,2.5826]
[1727396477546,15.39,155.81,155.74,3.2095]
[1727396477745,15.39,155.79,155.74,3.2095]
[1727396478142,3.209,155.77,155.74,3.2095]
[1727396478749,15.39,155.79,155.73,3.2098]
[1727396478938,15.39,155.77,155.69,8.8861449]
[1727396479246,15.39,155.75,155.69,2.5325]
[1727396479449,3.2098,155.74,155.71,3.2102]
[1727396480046,3.2098,155.74,155.7,3.2104]
[1727396481242,18.58502013,155.75,155.68,83.31423797]
[1727396481243,15.39,155.73,155.68,83.31423797]
[1727396481646,3.2101,155.72,155.68,86.52493797]
[1727396481844,15.39,155.71,155.65,2.5325]
[1727396482052,15.39,155.69,155.62,1.2959]
[1727396482352,18.6007,155.69,155.65,3.2113]
[1727396482553,15.39,155.69,155.62,1.2959]
[1727396482749,3.2114,155.66,155.62,3.2119]
[1727396482945,15.39,155.67,155.61,2.6448]
[1727396483349,18.6011,155.67,155.61,2.6448]
[1727396483557,15.39,155.67,155.61,2.6448]
[1727396483755,18.53486014,155.67,155.61,2.6448]
[1727396483951,3.2113,155.66,155.62,3.2121]
[1727396484755,3.2116,155.65,155.61,3.2123]
[1727396484953,15.39,155.65,155.57,2.7113]
[1727396485257,3.2123,155.62,155.58,3.2129]
[1727396485553,15.39,155.63,155.53,18.1013]
[1727396486150,3.27237617,155.62,155.53,18.1013]
[1727396486457,3.18340402,155.63,155.55,15.39]
[1727396486857,6.39530402,155.63,155.55,15.39]
[1727396488856,3.27398216,155.83,155.61,15.39]
[1727396489052,15.39,155.71,155.61,15.39]
[1727396489351,18.53703709,155.71,155.61,15.39]
[1727396489756,3.2108,155.69,155.64,3.2116]
[1727396490258,3.2106,155.7,155.65,3.2114]
[1727396491757,3.2107,155.69,155.64,3.2117]
[1727396492260,3.211,155.68,155.63,3.2119]
[1727396492466,15.39,155.69,155.6,1.3607]